Cogmind - Beta 13 @@@ ROGUE MODE // 2024.04.14 @ 14:09:41 Player: Carpathian Result: Self-destructed Performance ------------- Evolutions (1) 500 Regions Visited (2) 400 Robots Destroyed (17) 85 Value Destroyed (488) 488 Prototype IDs (0) 0 Alien Tech Used (0) 0 Bonus (0) 0 TOTAL SCORE: 1473 Bonus ------- None Cogmind --------- Core Integrity 213/400 Matter 300/300 Energy 100/100 System Corruption 0% Temperature Cool (0) Movement Core (350) Ox6 Location -9/Materials Parts ------- > --- POWER (1) -------- (None) > --- PROPULSION (2) --- (None) > --- UTILITY (4) ------ Large Storage Unit > --- WEAPON (2) ------- (None) > --- INVENTORY (15) --- Ion Engine Light Treads Light Treads Light EM Pulse Cannon Light Assault Rifle Peak State ------------ > --- POWER ------------ Ion Engine > --- PROPULSION ------- Aluminum Leg Aluminum Leg > --- UTILITY ---------- Large Storage Unit Medium Armor Plating > --- WEAPON ----------- Light EM Pulse Cannon Light EM Pulse Cannon > --- INVENTORY -------- Ion Engine Light Treads Light Treads Light Assault Rifle [Rating: 10] Favorites ----------- Power Ion Engine Engine Ion Engine Propulsion Aluminum Leg Leg Aluminum Leg Utility Large Storage Unit Storage Large Storage Unit Protection Medium Armor Plating Weapon Light EM Pulse Cannon Energy Gun Small Laser Energy Cannon Light EM Pulse Cannon Ballistic Gun Light Assault Rifle Build | -11 -10 -9 ------- Run | Yrd Mat Mat Slots Evolved 2 | . . 2 Power . | . . . Propulsion . | . . . Utility 2 | . . 2 Weapon . | . . . Parts Attached 11 | 6 1 4 Power 1 | 1 . . Engine 1 | 1 . . Core . | . . . Reactor . | . . . Propulsion 2 | 2 . . Treads . | . . . Leg 2 | 2 . . Wheel . | . . . Hover . | . . . Flight . | . . . Utility 3 | 1 1 1 Device . | . . . Storage 2 | 1 . 1 Processor . | . . . Hackware . | . . . Protection 1 | . 1 . Artifact . | . . . Weapon 5 | 2 . 3 Energy Gun 2 | 1 . 1 Energy Cannon 2 | . . 2 Ballistic Gun 1 | 1 . . Ballistic Cannon . | . . . Launcher . | . . . Special Weapon . | . . . Impact Weapon . | . . . Slashing Weapon . | . . . Piercing Weapon . | . . . Special Melee Weapon . | . . . Unidentified Prototypes . | . . . Parts Lost 8 | . . 8 Power 1 | . . 1 Propulsion 2 | . . 2 Utility 1 | . . 1 Weapon 4 | . . 4 Highest Loss Streak 3 | . . 3 To Critical Strikes . | . . . Average Slot Usage (%) 54 | . 85 46 Engine 5 | . 14 3 Leg 11 | . 28 7 Storage 11 | . 14 11 Protection 2 | . . 3 Energy Gun 6 | . 14 5 Energy Cannon 10 | . . 12 Ballistic Gun 5 | . 14 3 Naked Turns . | . . . Heaviest Build 34 | 12 19 34 Greatest Support 20 | 20 20 20 Greatest Overweight (x) 9 | . . 9 Average Overweight (x) 2 | . . 3 Largest Inventory Capacity 15 | 8 8 15 Average Capacity 11 | 6 8 13 Most Carried 6 | 5 5 6 Average Carried 4 | 2 3 4 Final Capacity 15 | 8 8 15 Final Carried 5 | 3 5 5 Class Distribution -------------------- 100% | Mutant Dominant Class ---------------- Mutant | -10/Materials Mutant | -9/Materials Resources | -11 -10 -9 ----------- Run | Yrd Mat Mat Matter Collected 345 | 242 37 66 Remotely . | . . . Salvage Created 632 | . 198 434 Parts 33 | . 7 26 Haulers Intercepted . | . . . Recyclers Shooed . | . . . Parts Field Recycled . | . . . Retrieved Matter . | . . . Parts Self-Destructed . | . . . Prevented . | . . . Kills | -11 -10 -9 ------- Run | Yrd Mat Mat Combat Hostiles Destroyed 16 | . 5 11 Guns 13 | . 5 8 Cannons 2 | . . 2 AOE 1 | . . 1 Classes Destroyed 4 | . 1 3 Recycler 1 | . . 1 Swarmer 4 | . . 4 Grunt 11 | . 5 6 Sentry 1 | . . 1 Best Kill Streak 5 | . 5 5 Combat Bots Only 5 | . 5 5 Max Kills in Single Turn 1 | . 1 1 Gunslinging . | . . . Exploded 1 | . . 1 Melee . | . . . Uniques/NPCs Destroyed . | . . . Combat | -11 -10 -9 -------- Run | Yrd Mat Mat Hostile Shots Fired 124 | . 25 99 Missed 34 | . 6 28 Damage Taken 1034 | . 212 822 Core 275 | . 88 187 Absorbed by Shields . | . . . Core Remaining (%) 82 | 100 64 . Volleys Fired 62 | . 19 43 Largest 2 | . 2 2 Hottest 112 | . 60 112 Shots Fired 117 | . 38 79 Gun 99 | . 38 61 Cannon 18 | . . 18 Launcher . | . . . Special . | . . . Kinetic 45 | . 19 26 Thermal 44 | . 19 25 Explosive . | . . . Electromagnetic 28 | . . 28 Robot Hit Streak 9 | . 9 9 Robot Miss Streak 4 | . 2 4 Penetration Max . | . . . Secondary Targets 2 | . 2 . Max Gunslinging Chain 1 | . 1 . Shots Hit Robots 79 | . 29 50 Core Hits 33 | . 11 22 Critical Kills . | . . . Critical Parts Destroyed . | . . . Critical Strikes . | . . . Melee Attacks . | . . . Impact . | . . . Slashing . | . . . Piercing . | . . . Sneak Attacks . | . . . Combat Hostiles . | . . . Follow-up Attacks . | . . . Damage Inflicted 965 | . 268 697 Guns 686 | . 268 418 Cannons 248 | . . 248 Explosions 31 | . . 31 Melee . | . . . Ramming . | . . . Kinetic 271 | . 121 150 Thermal 339 | . 147 192 Explosive . | . . . Electromagnetic 355 | . . 355 Impact . | . . . Slashing . | . . . Piercing . | . . . Highest Corruption . | . . . Average Corruption . | . . . Corruption Purged . | . . . Corruption Blocked . | . . . Overload Shots . | . . . Overflow Damage . | . . . Projectiles . | . . . Explosions . | . . . Melee . | . . . Knockbacks . | . . . Impact . | . . . Kinetic . | . . . Secondary . | . . . Self-Inflicted Damage . | . . . Shots . | . . . Rammed . | . . . Targets Rammed . | . . . Kicked . | . . . Crushed . | . . . Highest Temperature 177 | . 108 177 Average Temperature 56 | . 51 58 Received Heat Transfer 468 | . 114 354 Siege Activations . | . . . Robots Corrupted . | . . . Combat Hostiles . | . . . Parts Fried 3 | . . 3 Impact Corruptions . | . . . Robots Melted . | . . . Combat Hostiles . | . . . Parts Melted . | . . . Heat Transferred 725 | . 350 375 Parts Sabotaged . | . . . Parts Stolen . | . . . Parts Stripped . | . . . Power Chain Reactions 1 | . . 1 Alert | -11 -10 -9 ------- Run | Yrd Mat Mat Peak Influence 263 | . 110 263 Initial 46 | . . 46 Average 94 | . 52 113 Maximum Alert Level 1 | . . 1 Low Security (%) 85 | 100 100 80 Level 1 14 | . . 19 Level 2 . | . . . Level 3 . | . . . Level 4 . | . . . Level 5 . | . . . High Security . | . . . Max Security . | . . . Squads Dispatched 4 | . 1 3 Investigation 2 | . 1 1 Extermination . | . . . Reinforcement 2 | . . 2 Assault . | . . . Garrison . | . . . Intercept . | . . . Searches Triggered . | . . . Construction Impeded . | . . . Haulers Reinforced . | . . . Active Scanning Responses . | . . . Cargo Convoy Interrupts . | . . . Stealth | -11 -10 -9 --------- Run | Yrd Mat Mat Distress Signals 2 | . 1 1 Communications Jammed . | . . . Distress Signals . | . . . Times Spotted 26 | . 6 20 Peak Tracking Total 4 | . 3 4 Tactical Retreats 1 | . . 1 Traps | -11 -10 -9 ------- Run | Yrd Mat Mat Traps Triggered 1 | . . 1 Indirectly . | . . . Trap Hack Attempts . | . . . Triggered . | . . . Disarmed . | . . . Reprogrammed . | . . . Reused . | . . . Traps Extracted . | . . . Installed . | . . . Triggered . | . . . Machines | -11 -10 -9 ---------- Run | Yrd Mat Mat Machines Disabled 1 | . . 1 Max in Single Turn 1 | . . 1 Machines Repaired . | . . . Machines Dismantled . | . . . Machines Sabotaged . | . . . Overloaded Fab Kills . | . . . Hacking | -11 -10 -9 --------- Run | Yrd Mat Mat Machines Accessed 2 | . 2 . Terminals 2 | . 2 . Fabricators . | . . . Repair Stations . | . . . Recycling Units . | . . . Scanalyzers . | . . . Garrison Access . | . . . Total Hacks 5 | . 5 . Successful 3 | . 3 . Failed 2 | . 2 . Catastrophic . | . . . Database Lockouts . | . . . Manual . | . . . Terminals 5 | . 5 . Fabricators . | . . . Repair Stations . | . . . Recycling Units . | . . . Scanalyzers . | . . . Garrison Access . | . . . Terminal Hacks 3 | . 3 . Record 2 | . 2 . Zone Layout 1 | . 1 . Fabricator Hacks . | . . . Repair Station Hacks . | . . . Recycling Unit Hacks . | . . . Scanalyzer . | . . . Garrison Access Hacks . | . . . Unauthorized Hacks . | . . . Terminals . | . . . Fabricators . | . . . Repair Stations . | . . . Recycling Units . | . . . Scanalyzers . | . . . Garrison Access . | . . . Data Cores Recovered . | . . . Used . | . . . Hacking Detections 1 | . 1 . Full Trace Events 1 | . 1 . Feedback Events . | . . . Feedback Blocked . | . . . Robot Schematics Acquired . | . . . Robots Built . | . . . Authchips . | . . . Time . | . . . Total Robot Build Rating . | . . . Part Schematics Acquired . | . . . Parts Built . | . . . Authchips . | . . . Time . | . . . Total Part Build Rating . | . . . Parts Repaired . | . . . Time . | . . . Parts Recycled . | . . . Recycled Matter . | . . . Retrieved Matter . | . . . Retrieved Components . | . . . Parts Scanalyzed . | . . . Part Schematics Acquired . | . . . Parts Damaged . | . . . Bothacking | -11 -10 -9 ------------ Run | Yrd Mat Mat Used RIF Installer . | . . . Robots Hacked . | . . . Non-combat . | . . . Combat . | . . . Robot Hacks Applied . | . . . Relay Couplers Released . | . . . Fabnet Peak Effective % . | . . . Robots Rewired . | . . . Allies Hacked . | . . . Hacks Repelled . | . . . Allies | -11 -10 -9 -------- Run | Yrd Mat Mat Total Allies . | . . . Largest Group . | . . . Highest-Rated Group . | . . . Highest-Rated Ally . | . . . Total Orders . | . . . Ally Attacks . | . . . Total Damage . | . . . Kills . | . . . Allies Corrupted . | . . . Allies Melted . | . . . Intel | -11 -10 -9 ------- Run | Yrd Mat Mat Robot Analysis Total . | . . . Derelict Logs Recovered . | . . . Drone Launches . | . . . Drone Recoveries . | . . . Exploration | -11 -10 -9 ------------- Run | Yrd Mat Mat Turns Passed 1125 | 69 218 838 Spaces Moved 416 | 55 116 245 Core 125 | 16 . 109 Treads . | . . . Legs 291 | 39 116 136 Wheels . | . . . Hover . | . . . Flight . | . . . Fastest Speed 50 | 50 120 120 Average Speed 214 | 99 120 285 Slowest Speed 500 | 120 120 500 Overloaded Moves . | . . . Propulsion Burnouts . | . . . Robots Hopped . | . . . Cave-ins Triggered . | . . . Exploration Rate (%) 16 | 3 19 28 Regions Visited 2 Branch Regions . Pre-discovered Areas . | . . . Known Exits Taken . | . . . Unknown Exits Taken 2 | 1 1 . Scrap Searched . | . . . Spaces Dug . | . . . Terrain Destroyed 2 | . . 2 Melee . | . . . Projectile . | . . . AOE 2 | . . 2 Terrain Rammed . | . . . Walls Destroyed . | . . . Machines Disabled . | . . . Actions | -11 -10 -9 --------- Run | Yrd Mat Mat Total 539 | 69 160 310 Wait 36 | . 22 14 Move 414 | 54 115 245 Hop . | . . . Pick Up 15 | 9 3 3 Fast Attach . | . . . Attach 9 | 6 1 2 Detach . | . . . Swap 2 | . . 2 Drop 1 | . . 1 Fire 62 | . 19 43 Melee . | . . . Ram . | . . . Kick . | . . . Crush . | . . . Escape Stasis . | . . . Rewire . | . . . Trap . | . . . Miscellaneous . | . . . Route ------- -11/Scrapyard -10/Materials -9/Materials History --------- Turn | Location | Event 11 | -11/Scrapyard | Discovered new exit (range 15) 70 | -11/Scrapyard | Entered Materials 248 | -10/Materials | Discovered new exit (range 16) 288 | -10/Materials | Entered another Materials area 288 | -9/Materials | Evolved 2 slots: Utility x2 315 | -9/Materials | Build established: Mutant 560 | -9/Materials | Lost 3 parts (1u2w) 600 | -9/Materials | Lost 3 parts (1p2n) 1126 | -9/Materials | Self-destructed Last Messages --------------- 00753_ K-01 Serf collects debris. 00767_ K-01 Serf cleans the Atomic Centrifuge. 00774_ Acquired EM Pulse Gun. 00777_ K-01 Serf cleans the Atomic Centrifuge. 00974_ ALERT: Hostiles spotted, dispatching reinforcements to Terminal M006. 00994_ G-34 Mercenary misfires. 01022_ G-34 Mercenary IFF system glitched. 01025_ Heat Sink fried. 01025_ G-34 Mercenary destroyed. 01039_ R-06 Scavenger collects Corrupted Aluminum Leg. 01043_ M-13 Machinist repairs Heat Sink. 01044_ Lgt. EM Pulse Cannon destroyed. 01048_ G-34 Mercenary destroyed. 01058_ Acquired 5 matter. 01075_ R-06 Scavenger collects Corrupted Aluminum Leg. 01079_ R-06 Scavenger collects Corrupted Heat Sink. 01082_ R-06 Scavenger collects Corrupted Aluminum Leg. 01118_ R-06 Scavenger destroyed. 01125_ EM Pulse Gun destroyed. Map ----- +----------------------------------------------------+ | ?????????????????????????????????????#""" ?# # | | ?????????????????????????????????????#"R ?# # | | ?????????????????????????????????????#""" ??# # | | ?????????????????????????????????????# ??# # | | ?????????????????????????????????# ??####???# + | | ?????????????????????????????????# ######## # | | ?????????????????????????????????# # | | ?????????????????????????????????# # | | ?????????????????????????????????# # | | ?????????????????????????????????# ###### ## | | ?????????????????????????????????# ???????# #? | | ??????????????????????????????????????????# #? | | ??????????????????????????????????????????# #? | | ??????????????????????????????????????????# #? | | ??????????????????????????????????????????# #? | | ????????????????????######????????????????# #? | | ????????????????????# #???????????????# ## | | ????????????????????# ????????????#### | | ????????????????????# ????????????#""" | | ????????????????????? ????????????#"Y | | ?????????????????????? g #????????????#""" "" | | ??????????????????????# g#????????????#### "" | | ??????????????????????# #???????????????# "" | | ??????????????????????# #?######????????# | | ??????????????????????# l # T ! #????????# | | ??????????????????????# @# #????????# | | ??????????????????????# + """ #????????# | | ???????????############ # """ #????????+ !% | | ?????????? # """ #????????# = ## | | ?????????? #? #????????# # | | ?????????? ###########?????# # | | ???????????############ # ! #?????# # | | ??????????????????????# #= #?????# # | | ??????????????????????# !+% = #?????# # | | ??????????????????????# =%# #?????# # | | ??????????????????????# !=###########?????# # | | ??????????????????????# ################# ## | | ??????????????????????# | | ??????????????????????# ^ | | ??????????????????????# ^ | | ??????????????????????####+######## ####+###% ### | | ???????????????????????? ?????# # "= ??? | | ??????????????????????# ???# #" ?# ??? | | ??????????????????????# #??# #""" ??#?????? | | ??????????????????????# """ #??# # "" ????????? | | ??????????????????????#""""" #??# # ?????????? | | ??????????????????????#""""" #??# # ?????????? | | ??????????????????????#""""" #??# ##+########### | | ?????????????????????????"" #??# | | ??????????????????????????? #??#+##+#####+##### | +----------------------------------------------------+ Best States ------------- Heat Dissipation 28 Energy Generation 10 Energy Capacity 250 Matter Stores 300 Matter Capacity 300 Sight Range 16 Terrain Scan Density 10 Armor Coverage 225 Evasion (%) 55 Item Schematics ----------------- None Robot Schematics ------------------ None Fabricated ------------ Nothing Alien Tech Used ----------------- None Achievements -------------- None Challenges ------------ None Game ------ Seed BackupMyomerTreads Manual? 0 Play Time 00:10:41 Cumulative 18.4 hours Start 2024.04.14 @ 14:02:22 End 2024.04.14 @ 14:09:41 Sessions 1 Manual Loads 0 Difficulty Rogue Special Mode None Game No. 104 Rogue 104 Adventurer 0 Explorer 0 Win Type - Total 0 Types 0/0/0/0/0/0/0/0/0 Lore% 7 Gallery% 22 Achievement% 16 Wizard Run 0 Options --------- Layout 0 ASCII 0 Keyboard 0 Movement Arrows Keybinds 0 Fullscreen 2 Font 24/Cog Map View 76x50 Zoom Use 0% Tactical HUD 1 Map Filters NONE Filters NONE Steam 1 RUN: eaf5e9f2-2089-44a4-be8c-be79dace52ca